Workbook

Sheet 综合成绩排名
A1: 施秉县事业单位2025年公开招聘工作人员考生综合成绩排名及拟入围体检人员名单
A2: 序号 | B2: 姓名 | C2: 报名序列号 | D2: 面试准考证号 | E2: 单位名称 | F2: 岗位名称 | G2: 职位代码 | H2: 岗位类别 | I2: 笔试成绩 | K2: 面试成绩 | M2: 综合成绩 | N2: 排名 | O2: 是否入围体检环节 | P2: 备注
I3: 成绩 | J3: 占总成绩百分比50% | K3: 成绩 | L3: 占总成绩百分比50%
A4: 1 | B4: 欧阳明华 | C4: 72722605019101000035 | D4: SBXGK2025050204 | E4: 施秉县第二高级中学 | F4: 高中语文教师 | G4: 22605019101 | H4: 专业技术岗位 | I4: 173.5 | J4: =I4/3*0.5 -> 28.91666667 | K4: 84.40 | L4: =K4*0.5 -> 42.2 | M4: =J4+L4 -> 71.11666667 | N4: 1 | O4: 是
A5: 2 | B5: 刘仕娟 | C5: 72722605019101000063 | D5: SBXGK2025050205 | E5: 施秉县第二高级中学 | F5: 高中语文教师 | G5: 22605019101 | H5: 专业技术岗位 | I5: 173.5 | J5: 28.91666667 | K5: 84.40 | L5: 42.2 | M5: 71.11666667 | N5: 1 | O5: 是
A6: 3 | B6: 姜世妹 | C6: 72722605019101000099 | D6: SBXGK2025050206 | E6: 施秉县第二高级中学 | F6: 高中语文教师 | G6: 22605019101 | H6: 专业技术岗位 | I6: 173 | J6: 28.83333333 | K6: 84.20 | L6: 42.1 | M6: 70.93333333 | N6: 3 | O6: 是
A7: 4 | B7: 肖莉莉 | C7: 72722605019101000041 | D7: SBXGK2025050203 | E7: 施秉县第二高级中学 | F7: 高中语文教师 | G7: 22605019101 | H7: 专业技术岗位 | I7: 175.5 | J7: 29.25 | K7: 80.80 | L7: 40.4 | M7: 69.65 | N7: 4 | O7: 是
A8: 5 | B8: 吴琳琳 | C8: 72722605019101000083 | D8: SBXGK2025050209 | E8: 施秉县第二高级中学 | F8: 高中语文教师 | G8: 22605019101 | H8: 专业技术岗位 | I8: 170.5 | J8: 28.41666667 | K8: 79.80 | L8: 39.9 | M8: 68.31666667 | N8: 5
A9: 6 | B9: 王亮 | C9: 72722605019101000044 | D9: SBXGK2025050210 | E9: 施秉县第二高级中学 | F9: 高中语文教师 | G9: 22605019101 | H9: 专业技术岗位 | I9: 170 | J9: 28.33333333 | K9: 78.40 | L9: 39.2 | M9: 67.53333333 | N9: 6
A10: 7 | B10: 雷帮静 | C10: 72722605019101000070 | D10: SBXGK2025050211 | E10: 施秉县第二高级中学 | F10: 高中语文教师 | G10: 22605019101 | H10: 专业技术岗位 | I10: 169.5 | J10: 28.25 | K10: 78.00 | L10: 39 | M10: 67.25 | N10: 7
A11: 8 | B11: 吴昌珍 | C11: 72722605019101000078 | D11: SBXGK2025050202 | E11: 施秉县第二高级中学 | F11: 高中语文教师 | G11: 22605019101 | H11: 专业技术岗位 | I11: 175.5 | J11: =I11/3*0.5 -> 29.25 | K11: 75.80 | L11: =K11*0.5 -> 37.9 | M11: =J11+L11 -> 67.15 | N11: 8
A12: 9 | B12: 钟建菊 | C12: 72722605019101000002 | D12: SBXGK2025050212 | E12: 施秉县第二高级中学 | F12: 高中语文教师 | G12: 22605019101 | H12: 专业技术岗位 | I12: 169.5 | J12: 28.25 | K12: 77.60 | L12: 38.8 | M12: 67.05 | N12: 9
A13: 10 | B13: 潘璇 | C13: 72722605019101000060 | D13: SBXGK2025050208 | E13: 施秉县第二高级中学 | F13: 高中语文教师 | G13: 22605019101 | H13: 专业技术岗位 | I13: 171 | J13: 28.5 | K13: 68.40 | L13: 34.2 | M13: 62.7 | N13: 10
A14: 11 | B14: 石贵灵 | C14: 72722605019101000033 | D14: SBXGK2025050201 | E14: 施秉县第二高级中学 | F14: 高中语文教师 | G14: 22605019101 | H14: 专业技术岗位 | I14: 177.5 | J14: 29.58333333 | K14: 缺考 | L14: 0 | M14: 29.58333333 | N14: 11
A15: 12 | B15: 张睿 | C15: 72722605019101000069 | D15: SBXGK2025050207 | E15: 施秉县第二高级中学 | F15: 高中语文教师 | G15: 22605019101 | H15: 专业技术岗位 | I15: 173 | J15: 28.83333333 | K15: 缺考 | L15: 0 | M15: 28.83333333 | N15: 12
A16: 13 | B16: 尚金林 | C16: 72722605019102000016 | D16: SBXGK2025050101 | E16: 施秉县第二高级中学 | F16: 高中数学教师 | G16: 22605019102 | H16: 专业技术岗位 | I16: 171 | J16: 28.5 | K16: 85.60 | L16: 42.8 | M16: 71.3 | N16: 1 | O16: 是
A17: 14 | B17: 叶蕊 | C17: 72722605019102000021 | D17: SBXGK2025050102 | E17: 施秉县第二高级中学 | F17: 高中数学教师 | G17: 22605019102 | H17: 专业技术岗位 | I17: 167.5 | J17: 27.91666667 | K17: 86.40 | L17: 43.2 | M17: 71.11666667 | N17: 2 | O17: 是
A18: 15 | B18: 王佳兴 | C18: 72722605019102000006 | D18: SBXGK2025050103 | E18: 施秉县第二高级中学 | F18: 高中数学教师 | G18: 22605019102 | H18: 专业技术岗位 | I18: 165.5 | J18: 27.58333333 | K18: 83.00 | L18: 41.5 | M18: 69.08333333 | N18: 3 | O18: 是
A19: 16 | B19: 龙文明 | C19: 72722605019102000009 | D19: SBXGK2025050109 | E19: 施秉县第二高级中学 | F19: 高中数学教师 | G19: 22605019102 | H19: 专业技术岗位 | I19: 144 | J19: 24 | K19: 85.20 | L19: 42.6 | M19: 66.6 | N19: 4 | O19: 是
A20: 17 | B20: 谭太斌 | C20: 72722605019102000012 | D20: SBXGK2025050104 | E20: 施秉县第二高级中学 | F20: 高中数学教师 | G20: 22605019102 | H20: 专业技术岗位 | I20: 160.5 | J20: 26.75 | K20: 79 | L20: 39.5 | M20: 66.25 | N20: 5
A21: 18 | B21: 张峰 | C21: 72722605019102000020 | D21: SBXGK2025050106 | E21: 施秉县第二高级中学 | F21: 高中数学教师 | G21: 22605019102 | H21: 专业技术岗位 | I21: 151 | J21: 25.16666667 | K21: 81.80 | L21: 40.9 | M21: 66.06666667 | N21: 6
A22: 19 | B22: 龙三妹 | C22: 72722605019102000002 | D22: SBXGK2025050108 | E22: 施秉县第二高级中学 | F22: 高中数学教师 | G22: 22605019102 | H22: 专业技术岗位 | I22: 145.5 | J22: =I22/3*0.5 -> 24.25 | K22: 82.60 | L22: 41.3 | M22: =J22+L22 -> 65.55 | N22: 7
A23: 20 | B23: 袁伟明 | C23: 72722605019102000011 | D23: SBXGK2025050107 | E23: 施秉县第二高级中学 | F23: 高中数学教师 | G23: 22605019102 | H23: 专业技术岗位 | I23: 146 | J23: 24.33333333 | K23: 82.40 | L23: 41.2 | M23: 65.53333333 | N23: 8
A24: 21 | B24: 吴凤梅 | C24: 72722605019102000013 | D24: SBXGK2025050110 | E24: 施秉县第二高级中学 | F24: 高中数学教师 | G24: 22605019102 | H24: 专业技术岗位 | I24: 137.5 | J24: 22.91666667 | K24: 83.40 | L24: 41.7 | M24: 64.61666667 | N24: 9
A25: 22 | B25: 龙永排 | C25: 72722605019102000022 | D25: SBXGK2025050111 | E25: 施秉县第二高级中学 | F25: 高中数学教师 | G25: 22605019102 | H25: 专业技术岗位 | I25: 133 | J25: 22.16666667 | K25: 73.60 | L25: 36.8 | M25: 58.96666667 | N25: 10
A26: 23 | B26: 曾永莉 | C26: 72722605019102000014 | D26: SBXGK2025050105 | E26: 施秉县第二高级中学 | F26: 高中数学教师 | G26: 22605019102 | H26: 专业技术岗位 | I26: 155 | J26: 25.83333333 | K26: 缺考 | L26: 0 | M26: 25.83333333 | N26: 11
A27: 24 | B27: 杨腾 | C27: 72722605019103000035 | D27: SBXGK2025050213 | E27: 施秉县第二高级中学 | F27: 高中日语教师 | G27: 22605019103 | H27: 专业技术岗位 | I27: 200 | J27: 33.33333333 | K27: 83.20 | L27: =K27*0.5 -> 41.6 | M27: 74.93333333 | N27: 1 | O27: 是
A28: 25 | B28: 杨南雪 | C28: 72722605019103000067 | D28: SBXGK2025050217 | E28: 施秉县第二高级中学 | F28: 高中日语教师 | G28: 22605019103 | H28: 专业技术岗位 | I28: 184.5 | J28: 30.75 | K28: 83.20 | L28: =K28*0.5 -> 41.6 | M28: 72.35 | N28: 2 | O28: 是
A29: 26 | B29: 尹莉 | C29: 72722605019103000101 | D29: SBXGK2025050218 | E29: 施秉县第二高级中学 | F29: 高中日语教师 | G29: 22605019103 | H29: 专业技术岗位 | I29: 177 | J29: 29.5 | K29: 84.20 | L29: =K29*0.5 -> 42.1 | M29: 71.6 | N29: 3 | O29: 是
A30: 27 | B30: 刘黎 | C30: 72722605019103000096 | D30: SBXGK2025050214 | E30: 施秉县第二高级中学 | F30: 高中日语教师 | G30: 22605019103 | H30: 专业技术岗位 | I30: 186 | J30: 31 | K30: 81.00 | L30: =K30*0.5 -> 40.5 | M30: 71.5 | N30: 4
A31: 28 | B31: 周颖 | C31: 72722605019103000071 | D31: SBXGK2025050219 | E31: 施秉县第二高级中学 | F31: 高中日语教师 | G31: 22605019103 | H31: 专业技术岗位 | I31: 177 | J31: =I31/3*0.5 -> 29.5 | K31: 79.60 | L31: =K31*0.5 -> 39.8 | M31: =J31+L31 -> 69.3 | N31: 5
A32: 29 | B32: 刘振怡 | C32: 72722605019103000097 | D32: SBXGK2025050220 | E32: 施秉县第二高级中学 | F32: 高中日语教师 | G32: 22605019103 | H32: 专业技术岗位 | I32: 176 | J32: 29.33333333 | K32: 79.80 | L32: 39.9 | M32: 69.23333333 | N32: 6
A33: 30 | B33: 杨云茜 | C33: 72722605019103000107 | D33: SBXGK2025050221 | E33: 施秉县第二高级中学 | F33: 高中日语教师 | G33: 22605019103 | H33: 专业技术岗位 | I33: 175 | J33: 29.16666667 | K33: 78.00 | L33: 39 | M33: 68.16666667 | N33: 7
A34: 31 | B34: 刘忠洪 | C34: 72722605019103000021 | D34: SBXGK2025050215 | E34: 施秉县第二高级中学 | F34: 高中日语教师 | G34: 22605019103 | H34: 专业技术岗位 | I34: 185.5 | J34: 30.91666667 | K34: 74.40 | L34: 37.2 | M34: 68.11666667 | N34: 8
A35: 32 | B35: 黄如 | C35: 72722605019103000106 | D35: SBXGK2025050216 | E35: 施秉县第二高级中学 | F35: 高中日语教师 | G35: 22605019103 | H35: 专业技术岗位 | I35: 185 | J35: 30.83333333 | K35: 72 | L35: 36 | M35: 66.83333333 | N35: 9
A36: 33 | B36: 潘玉雪 | C36: 72722605019104000016 | D36: SBXGK2025050222 | E36: 施秉县第二高级中学 | F36: 高中俄语教师 | G36: 22605019104 | H36: 专业技术岗位 | I36: 161 | J36: 26.83333333 | K36: 81.80 | L36: 40.9 | M36: 67.73333333 | N36: 1 | O36: 是
A37: 34 | B37: 潘曦 | C37: 72722605019104000020 | D37: SBXGK2025050223 | E37: 施秉县第二高级中学 | F37: 高中俄语教师 | G37: 22605019104 | H37: 专业技术岗位 | I37: 159.5 | J37: 26.58333333 | K37: 78.40 | L37: 39.2 | M37: 65.78333333 | N37: 2
A38: 35 | B38: 刘嘉鑫 | C38: 72722605019105000004 | D38: SBXGK2025050401 | E38: 施秉县第二高级中学 | F38: 高中物理教师 | G38: 22605019105 | H38: 专业技术岗位 | I38: 178.5 | J38: 29.75 | K38: 82.20 | L38: 41.1 | M38: 70.85 | N38: 1 | O38: 是
A39: 36 | B39: 刘涛 | C39: 72722605019105000012 | D39: SBXGK2025050402 | E39: 施秉县第二高级中学 | F39: 高中物理教师 | G39: 22605019105 | H39: 专业技术岗位 | I39: 162.5 | J39: 27.08333333 | K39: 84.40 | L39: 42.2 | M39: 69.28333333 | N39: 2 | O39: 是
A40: 37 | B40: 龙国金 | C40: 72722605019105000031 | D40: SBXGK2025050405 | E40: 施秉县第二高级中学 | F40: 高中物理教师 | G40: 22605019105 | H40: 专业技术岗位 | I40: 152.5 | J40: 25.41666667 | K40: 85.40 | L40: 42.7 | M40: 68.11666667 | N40: 3
A41: 38 | B41: 邓成艳 | C41: 72722605019105000010 | D41: SBXGK2025050403 | E41: 施秉县第二高级中学 | F41: 高中物理教师 | G41: 22605019105 | H41: 专业技术岗位 | I41: 157 | J41: 26.16666667 | K41: 82.80 | L41: 41.4 | M41: 67.56666667 | N41: 4
A42: 39 | B42: 韦代贵 | C42: 72722605019105000025 | D42: SBXGK2025050404 | E42: 施秉县第二高级中学 | F42: 高中物理教师 | G42: 22605019105 | H42: 专业技术岗位 | I42: 154 | J42: 25.66666667 | K42: 81.60 | L42: 40.8 | M42: 66.46666667 | N42: 5
A43: 40 | B43: 杨光祥 | C43: 72722605019105000014 | D43: SBXGK2025050406 | E43: 施秉县第二高级中学 | F43: 高中物理教师 | G43: 22605019105 | H43: 专业技术岗位 | I43: 140 | J43: 23.33333333 | K43: 78.00 | L43: 39 | M43: 62.33333333 | N43: 6
A44: 41 | B44: 王笛 | C44: 72722605019106000021 | D44: SBXGK2025050112 | E44: 施秉县第二高级中学 | F44: 高中化学教师 | G44: 22605019106 | H44: 专业技术岗位 | I44: 183 | J44: 30.5 | K44: 83.80 | L44: 41.9 | M44: 72.4 | N44: 1 | O44: 是
A45: 42 | B45: 赵韦芳 | C45: 72722605019106000028 | D45: SBXGK2025050113 | E45: 施秉县第二高级中学 | F45: 高中化学教师 | G45: 22605019106 | H45: 专业技术岗位 | I45: 154.5 | J45: 25.75 | K45: 82.80 | L45: 41.4 | M45: 67.15 | N45: 2
A46: 43 | B46: 欧天菜 | C46: 72722605019106000048 | D46: SBXGK2025050114 | E46: 施秉县第二高级中学 | F46: 高中化学教师 | G46: 22605019106 | H46: 专业技术岗位 | I46: 151 | J46: 25.16666667 | K46: 79.40 | L46: 39.7 | M46: 64.86666667 | N46: 3
A47: 44 | B47: 胡振洋 | C47: 72722605019107000003 | D47: SBXGK2025050115 | E47: 施秉县第二高级中学 | F47: 高中化学教师 | G47: 22605019107 | H47: 专业技术岗位 | I47: 179 | J47: 29.83333333 | K47: 83.20 | L47: 41.6 | M47: 71.43333333 | N47: 1 | O47: 是
A48: 45 | B48: 戚玲玲 | C48: 72722605019107000010 | D48: SBXGK2025050117 | E48: 施秉县第二高级中学 | F48: 高中化学教师 | G48: 22605019107 | H48: 专业技术岗位 | I48: 170 | J48: 28.33333333 | K48: 85 | L48: 42.5 | M48: 70.83333333 | N48: 2
A49: 46 | B49: 向番禺 | C49: 72722605019107000014 | D49: SBXGK2025050116 | E49: 施秉县第二高级中学 | F49: 高中化学教师 | G49: 22605019107 | H49: 专业技术岗位 | I49: 171 | J49: 28.5 | K49: 82.80 | L49: 41.4 | M49: 69.9 | N49: 3
A50: 47 | B50: 王欣 | C50: 72722605019108000063 | D50: SBXGK2025050407 | E50: 施秉县第二高级中学 | F50: 高中生物教师 | G50: 22605019108 | H50: 专业技术岗位 | I50: 193 | J50: 32.16666667 | K50: 84.80 | L50: 42.4 | M50: 74.56666667 | N50: 1 | O50: 是
A51: 48 | B51: 陈晨 | C51: 72722605019108000102 | D51: SBXGK2025050408 | E51: 施秉县第二高级中学 | F51: 高中生物教师 | G51: 22605019108 | H51: 专业技术岗位 | I51: 184.5 | J51: 30.75 | K51: 81.60 | L51: 40.8 | M51: 71.55 | N51: 2
A52: 49 | B52: 冉盼 | C52: 72722605019108000088 | D52: SBXGK2025050409 | E52: 施秉县第二高级中学 | F52: 高中生物教师 | G52: 22605019108 | H52: 专业技术岗位 | I52: 180.5 | J52: 30.08333333 | K52: 79.80 | L52: 39.9 | M52: 69.98333333 | N52: 3
A53: 50 | B53: 何雨洁 | C53: 72722605019109000004 | D53: SBXGK2025050412 | E53: 施秉县第二高级中学 | F53: 高中生物教师 | G53: 22605019109 | H53: 专业技术岗位 | I53: 185.5 | J53: 30.91666667 | K53: 82.00 | L53: 41 | M53: 71.91666667 | N53: 1 | O53: 是
A54: 51 | B54: 陈思雯 | C54: 72722605019109000070 | D54: SBXGK2025050410 | E54: 施秉县第二高级中学 | F54: 高中生物教师 | G54: 22605019109 | H54: 专业技术岗位 | I54: 195 | J54: =I54/3*0.5 -> 32.5 | K54: 缺考 | L54: 0 | M54: =J54+L54 -> 32.5 | N54: 2
A55: 52 | B55: 潘佳佳 | C55: 72722605019109000057 | D55: SBXGK2025050411 | E55: 施秉县第二高级中学 | F55: 高中生物教师 | G55: 22605019109 | H55: 专业技术岗位 | I55: 187 | J55: 31.16666667 | K55: 缺考 | L55: 0 | M55: 31.16666667 | N55: 3
A56: 53 | B56: 肖琳 | C56: 72722605019110000018 | D56: SBXGK2025050301 | E56: 施秉县第二高级中学 | F56: 高中政治教师 | G56: 22605019110 | H56: 专业技术岗位 | I56: 194.5 | J56: 32.41666667 | K56: 85.80 | L56: =K56*0.5 -> 42.9 | M56: 75.31666667 | N56: 1 | O56: 是
A57: 54 | B57: 张雯 | C57: 72722605019110000026 | D57: SBXGK2025050302 | E57: 施秉县第二高级中学 | F57: 高中政治教师 | G57: 22605019110 | H57: 专业技术岗位 | I57: 175.5 | J57: 29.25 | K57: 83.80 | L57: 41.9 | M57: 71.15 | N57: 2
A58: 55 | B58: 欧阳谊频 | C58: 72722605019110000011 | D58: SBXGK2025050303 | E58: 施秉县第二高级中学 | F58: 高中政治教师 | G58: 22605019110 | H58: 专业技术岗位 | I58: 171 | J58: 28.5 | K58: 82.20 | L58: 41.1 | M58: 69.6 | N58: 3
A59: 56 | B59: 赵荟翠 | C59: 72722605019111000014 | D59: SBXGK2025050304 | E59: 施秉县第二高级中学 | F59: 高中政治教师 | G59: 22605019111 | H59: 专业技术岗位 | I59: 209 | J59: 34.83333333 | K59: 82.80 | L59: 41.4 | M59: 76.23333333 | N59: 1 | O59: 是
A60: 57 | B60: 周莉 | C60: 72722605019111000013 | D60: SBXGK2025050305 | E60: 施秉县第二高级中学 | F60: 高中政治教师 | G60: 22605019111 | H60: 专业技术岗位 | I60: 174 | J60: 29 | K60: 84.80 | L60: 42.4 | M60: 71.4 | N60: 2
A61: 58 | B61: 欧羽芳 | C61: 72722605019111000002 | D61: SBXGK2025050306 | E61: 施秉县第二高级中学 | F61: 高中政治教师 | G61: 22605019111 | H61: 专业技术岗位 | I61: 170 | J61: 28.33333333 | K61: 83.80 | L61: 41.9 | M61: 70.23333333 | N61: 3
A62: 59 | B62: 彭丽芳 | C62: 72722605019112000020 | D62: SBXGK2025050307 | E62: 施秉县第二高级中学 | F62: 高中历史教师 | G62: 22605019112 | H62: 专业技术岗位 | I62: 165.5 | J62: 27.58333333 | K62: 81.40 | L62: 40.7 | M62: 68.28333333 | N62: 1 | O62: 是
A63: 60 | B63: 刘慧 | C63: 72722605019112000014 | D63: SBXGK2025050308 | E63: 施秉县第二高级中学 | F63: 高中历史教师 | G63: 22605019112 | H63: 专业技术岗位 | I63: 161 | J63: 26.83333333 | K63: 81.40 | L63: 40.7 | M63: 67.53333333 | N63: 2
A64: 61 | B64: 周爽 | C64: 72722605019112000005 | D64: SBXGK2025050309 | E64: 施秉县第二高级中学 | F64: 高中历史教师 | G64: 22605019112 | H64: 专业技术岗位 | I64: 161 | J64: 26.83333333 | K64: 79.60 | L64: 39.8 | M64: 66.63333333 | N64: 3
A65: 62 | B65: 付姗姗 | C65: 72722605019113000014 | D65: SBXGK2025050312 | E65: 施秉县第二高级中学 | F65: 高中地理教师 | G65: 22605019113 | H65: 专业技术岗位 | I65: 178.5 | J65: =I65/3*0.5 -> 29.75 | K65: 86.20 | L65: =K65*0.5 -> 43.1 | M65: =J65+L65 -> 72.85 | N65: 1 | O65: 是
A66: 63 | B66: 田海星 | C66: 72722605019113000011 | D66: SBXGK2025050311 | E66: 施秉县第二高级中学 | F66: 高中地理教师 | G66: 22605019113 | H66: 专业技术岗位 | I66: 178.5 | J66: 29.75 | K66: 85.40 | L66: 42.7 | M66: 72.45 | N66: 2
A67: 64 | B67: 张爱民 | C67: 72722605019113000010 | D67: SBXGK2025050310 | E67: 施秉县第二高级中学 | F67: 高中地理教师 | G67: 22605019113 | H67: 专业技术岗位 | I67: 180.5 | J67: 30.08333333 | K67: 84.40 | L67: 42.2 | M67: 72.28333333 | N67: 3
A68: 65 | B68: 熊紫云 | C68: 72722605019114000028 | D68: SBXGK2025050313 | E68: 施秉县第二高级中学 | F68: 高中地理教师 | G68: 22605019114 | H68: 专业技术岗位 | I68: 189 | J68: 31.5 | K68: 84.60 | L68: 42.3 | M68: 73.8 | N68: 1 | O68: 是
A69: 66 | B69: 潘仁禹 | C69: 72722605019114000023 | D69: SBXGK2025050314 | E69: 施秉县第二高级中学 | F69: 高中地理教师 | G69: 22605019114 | H69: 专业技术岗位 | I69: 176 | J69: 29.33333333 | K69: 81.60 | L69: 40.8 | M69: 70.13333333 | N69: 2
A70: 67 | B70: 陈林 | C70: 72722605019114000026 | D70: SBXGK2025050315 | E70: 施秉县第二高级中学 | F70: 高中地理教师 | G70: 22605019114 | H70: 专业技术岗位 | I70: 168 | J70: 28 | K70: 80.20 | L70: 40.1 | M70: 68.1 | N70: 3
A71: 68 | B71: 舒钟琪 | C71: 72722605019115000012 | D71: SBXGK2025050316 | E71: 施秉县第二高级中学 | F71: 高中地理教师 | G71: 22605019115 | H71: 专业技术岗位 | I71: 159.5 | J71: 26.58333333 | K71: 83.80 | L71: 41.9 | M71: 68.48333333 | N71: 1 | O71: 是
A72: 69 | B72: 杨长云 | C72: 72722605019115000007 | D72: SBXGK2025050317 | E72: 施秉县第二高级中学 | F72: 高中地理教师 | G72: 22605019115 | H72: 专业技术岗位 | I72: 146.5 | J72: 24.41666667 | K72: 83.20 | L72: 41.6 | M72: 66.01666667 | N72: 2
A73: 70 | B73: 欧阳英 | C73: 72722605019115000001 | D73: SBXGK2025050318 | E73: 施秉县第二高级中学 | F73: 高中地理教师 | G73: 22605019115 | H73: 专业技术岗位 | I73: 142.5 | J73: 23.75 | K73: 81.00 | L73: 40.5 | M73: 64.25 | N73: 3
A74: 71 | B74: 韦代林 | C74: 72722605019116000117 | D74: SBXGK2025050414 | E74: 施秉县第二高级中学 | F74: 高中体育教师 | G74: 22605019116 | H74: 专业技术岗位 | I74: 171 | J74: 28.5 | K74: 85.20 | L74: 42.6 | M74: 71.1 | N74: 1 | O74: 是
A75: 72 | B75: 杨丝艳 | C75: 72722605019116000104 | D75: SBXGK2025050413 | E75: 施秉县第二高级中学 | F75: 高中体育教师 | G75: 22605019116 | H75: 专业技术岗位 | I75: 173 | J75: 28.83333333 | K75: 82.60 | L75: 41.3 | M75: 70.13333333 | N75: 2
A76: 73 | B76: 万雨 | C76: 72722605019116000033 | D76: SBXGK2025050415 | E76: 施秉县第二高级中学 | F76: 高中体育教师 | G76: 22605019116 | H76: 专业技术岗位 | I76: 170 | J76: 28.33333333 | K76: 83.20 | L76: 41.6 | M76: 69.93333333 | N76: 3
A77: 74 | B77: 沈彪 | C77: 72722605019117000076 | D77: SBXGK2025050601 | E77: 施秉县第二高级中学 | F77: 财务管理 | G77: 22605019117 | H77: 专业技术岗位 | I77: 202 | J77: 33.66666667 | K77: 78.80 | L77: 39.4 | M77: 73.06666667 | N77: 1 | O77: 是
A78: 75 | B78: 吴昌兰 | C78: 72722605019117000065 | D78: SBXGK2025050602 | E78: 施秉县第二高级中学 | F78: 财务管理 | G78: 22605019117 | H78: 专业技术岗位 | I78: 199.5 | J78: 33.25 | K78: 77.60 | L78: 38.8 | M78: 72.05 | N78: 2
A79: 76 | B79: 潘李婷 | C79: 72722605019117000097 | D79: SBXGK2025050603 | E79: 施秉县第二高级中学 | F79: 财务管理 | G79: 22605019117 | H79: 专业技术岗位 | I79: 195.5 | J79: 32.58333333 | K79: 缺考 | L79: 0 | M79: 32.58333333 | N79: 3
A80: 77 | B80: 罗霜 | C80: 72722605019201000002 | D80: SBXGK2025050224 | E80: 施秉县中等职业技术学校 | F80: 高中语文教师 | G80: 22605019201 | H80: 专业技术岗位 | I80: 172 | J80: 28.66666667 | K80: 85.00 | L80: =K80*0.5 -> 42.5 | M80: 71.16666667 | N80: 1 | O80: 是
A81: 78 | B81: 赵景杏 | C81: 72722605019201000022 | D81: SBXGK2025050226 | E81: 施秉县中等职业技术学校 | F81: 高中语文教师 | G81: 22605019201 | H81: 专业技术岗位 | I81: 168.5 | J81: 28.08333333 | K81: 80.00 | L81: 40 | M81: 68.08333333 | N81: 2
A82: 79 | B82: 舒巧巧 | C82: 72722605019201000013 | D82: SBXGK2025050225 | E82: 施秉县中等职业技术学校 | F82: 高中语文教师 | G82: 22605019201 | H82: 专业技术岗位 | I82: 169 | J82: 28.16666667 | K82: 75.60 | L82: 37.8 | M82: 65.96666667 | N82: 3
A83: 80 | B83: 杨清羽 | C83: 72722605019202000002 | D83: SBXGK2025050416 | E83: 施秉县中等职业技术学校 | F83: 高中物理教师 | G83: 22605019202 | H83: 专业技术岗位 | I83: 168 | J83: 28 | K83: 81.20 | L83: 40.6 | M83: 68.6 | N83: 1 | O83: 是
A84: 81 | B84: 田洪毅 | C84: 72722605019202000009 | D84: SBXGK2025050417 | E84: 施秉县中等职业技术学校 | F84: 高中物理教师 | G84: 22605019202 | H84: 专业技术岗位 | I84: 153 | J84: 25.5 | K84: 79.40 | L84: 39.7 | M84: 65.2 | N84: 2
A85: 82 | B85: 张恒 | C85: 72722605019202000007 | D85: SBXGK2025050418 | E85: 施秉县中等职业技术学校 | F85: 高中物理教师 | G85: 22605019202 | H85: 专业技术岗位 | I85: 148.5 | J85: 24.75 | K85: 缺考 | L85: 0 | M85: 24.75 | N85: 3
A86: 83 | B86: 张垚 | C86: 72722605019203000017 | D86: SBXGK2025050321 | E86: 施秉县中等职业技术学校 | F86: 高中地理教师 | G86: 22605019203 | H86: 专业技术岗位 | I86: 163.5 | J86: 27.25 | K86: 86.00 | L86: =K86*0.5 -> 43 | M86: 70.25 | N86: 1 | O86: 是
A87: 84 | B87: 杨云霞 | C87: 72722605019203000003 | D87: SBXGK2025050320 | E87: 施秉县中等职业技术学校 | F87: 高中地理教师 | G87: 22605019203 | H87: 专业技术岗位 | I87: 164 | J87: =I87/3*0.5 -> 27.33333333 | K87: 84.20 | L87: =K87*0.5 -> 42.1 | M87: =J87+L87 -> 69.43333333 | N87: 2
A88: 85 | B88: 胡淼 | C88: 72722605019203000028 | D88: SBXGK2025050319 | E88: 施秉县中等职业技术学校 | F88: 高中地理教师 | G88: 22605019203 | H88: 专业技术岗位 | I88: 174 | J88: 29 | K88: 78.20 | L88: 39.1 | M88: 68.1 | N88: 3
A89: 86 | B89: 雷太富 | C89: 72722605019204000014 | D89: SBXGK2025050420 | E89: 施秉县中等职业技术学校 | F89: 高中体育教师 | G89: 22605019204 | H89: 专业技术岗位 | I89: 163 | J89: 27.16666667 | K89: 83.60 | L89: 41.8 | M89: 68.96666667 | N89: 1 | O89: 是
A90: 87 | B90: 龙国弘 | C90: 72722605019204000013 | D90: SBXGK2025050421 | E90: 施秉县中等职业技术学校 | F90: 高中体育教师 | G90: 22605019204 | H90: 专业技术岗位 | I90: 162 | J90: 27 | K90: 83.80 | L90: 41.9 | M90: 68.9 | N90: 2
A91: 88 | B91: 向林 | C91: 72722605019204000006 | D91: SBXGK2025050419 | E91: 施秉县中等职业技术学校 | F91: 高中体育教师 | G91: 22605019204 | H91: 专业技术岗位 | I91: 189.5 | J91: 31.58333333 | K91: 缺考 | L91: 0 | M91: 31.58333333 | N91: 3
A92: 89 | B92: 邵宇凡 | C92: 72722605019301000006 | D92: SBXGK2025050118 | E92: 施秉县第一中学 | F92: 高中数学教师 | G92: 22605019301 | H92: 专业技术岗位 | I92: 162.5 | J92: 27.08333333 | K92: 81.60 | L92: 40.8 | M92: 67.88333333 | N92: 1 | O92: 是
A93: 90 | B93: 杨春燕 | C93: 72722605019301000002 | D93: SBXGK2025050119 | E93: 施秉县第一中学 | F93: 高中数学教师 | G93: 22605019301 | H93: 专业技术岗位 | I93: 155.5 | J93: 25.91666667 | K93: 83.60 | L93: 41.8 | M93: 67.71666667 | N93: 2
A94: 91 | B94: 张琦 | C94: 72722605019302000008 | D94: SBXGK2025050422 | E94: 施秉县第一中学 | F94: 高中物理教师 | G94: 22605019302 | H94: 专业技术岗位 | I94: 143 | J94: 23.83333333 | K94: 84.20 | L94: 42.1 | M94: 65.93333333 | N94: 1 | O94: 是
A95: 92 | B95: 杨莉 | C95: 72722605019303000018 | D95: SBXGK2025050120 | E95: 施秉县第一中学 | F95: 高中化学教师 | G95: 22605019303 | H95: 专业技术岗位 | I95: 170.5 | J95: 28.41666667 | K95: 84.20 | L95: 42.1 | M95: 70.51666667 | N95: 1 | O95: 是
A96: 93 | B96: 郭海英 | C96: 72722605019303000015 | D96: SBXGK2025050121 | E96: 施秉县第一中学 | F96: 高中化学教师 | G96: 22605019303 | H96: 专业技术岗位 | I96: 166.5 | J96: 27.75 | K96: 81.20 | L96: 40.6 | M96: 68.35 | N96: 2
A97: 94 | B97: 张大顺 | C97: 72722605019303000008 | D97: SBXGK2025050122 | E97: 施秉县第一中学 | F97: 高中化学教师 | G97: 22605019303 | H97: 专业技术岗位 | I97: 163.5 | J97: 27.25 | K97: 80.80 | L97: 40.4 | M97: 67.65 | N97: 3
A98: 95 | B98: 王俊 | C98: 72722605019401000115 | D98: SBXGK2025050227 | E98: 施秉县第二中学 | F98: 初中音乐教师 | G98: 22605019401 | H98: 专业技术岗位 | I98: 170.5 | J98: 28.41666667 | K98: 85.00 | L98: 42.5 | M98: 70.91666667 | N98: 1 | O98: 是
A99: 96 | B99: 田成梅 | C99: 72722605019401000040 | D99: SBXGK2025050229 | E99: 施秉县第二中学 | F99: 初中音乐教师 | G99: 22605019401 | H99: 专业技术岗位 | I99: 165 | J99: 27.5 | K99: 75.40 | L99: 37.7 | M99: 65.2 | N99: 2
A100: 97 | B100: 刘文瑾 | C100: 72722605019401000059 | D100: SBXGK2025050228 | E100: 施秉县第二中学 | F100: 初中音乐教师 | G100: 22605019401 | H100: 专业技术岗位 | I100: 170 | J100: 28.33333333 | K100: 70.20 | L100: 35.1 | M100: 63.43333333 | N100: 3
A101: 98 | B101: 刘平梅 | C101: 72722605019402000003 | D101: SBXGK2025050124 | E101: 施秉县第二中学 | F101: 初中数学教师 | G101: 22605019402 | H101: 专业技术岗位 | I101: 150.5 | J101: 25.08333333 | K101: 83.80 | L101: 41.9 | M101: 66.98333333 | N101: 1 | O101: 是
A102: 99 | B102: 杨庭彪 | C102: 72722605019402000012 | D102: SBXGK2025050123 | E102: 施秉县第二中学 | F102: 初中数学教师 | G102: 22605019402 | H102: 专业技术岗位 | I102: 156.5 | J102: 26.08333333 | K102: 79.20 | L102: 39.6 | M102: 65.68333333 | N102: 2
A103: 100 | B103: 马行 | C103: 72722605019402000011 | D103: SBXGK2025050125 | E103: 施秉县第二中学 | F103: 初中数学教师 | G103: 22605019402 | H103: 专业技术岗位 | I103: 145.5 | J103: 24.25 | K103: 80.40 | L103: 40.2 | M103: 64.45 | N103: 3
A104: 101 | B104: 吴小芳 | C104: 72722605019501000010 | D104: SBXGK2025050126 | E104: 施秉县民族中学 | F104: 初中数学教师 | G104: 22605019501 | H104: 专业技术岗位 | I104: 179 | J104: 29.83333333 | K104: 83.80 | L104: 41.9 | M104: 71.73333333 | N104: 1 | O104: 是
A105: 102 | B105: 潘志强 | C105: 72722605019501000011 | D105: SBXGK2025050127 | E105: 施秉县民族中学 | F105: 初中数学教师 | G105: 22605019501 | H105: 专业技术岗位 | I105: 153.5 | J105: 25.58333333 | K105: 85.20 | L105: 42.6 | M105: 68.18333333 | N105: 2
A106: 103 | B106: 彭明松 | C106: 72722605019501000006 | D106: SBXGK2025050128 | E106: 施秉县民族中学 | F106: 初中数学教师 | G106: 22605019501 | H106: 专业技术岗位 | I106: 153.5 | J106: 25.58333333 | K106: 84.40 | L106: 42.2 | M106: 67.78333333 | N106: 3
A107: 104 | B107: 任桂平 | C107: 72722605019502000005 | D107: SBXGK2025050423 | E107: 施秉县民族中学 | F107: 初中物理教师 | G107: 22605019502 | H107: 专业技术岗位 | I107: 166.5 | J107: 27.75 | K107: 79.40 | L107: 39.7 | M107: 67.45 | N107: 1 | O107: 是
A108: 105 | B108: 潘昌友 | C108: 72722605019502000015 | D108: SBXGK2025050424 | E108: 施秉县民族中学 | F108: 初中物理教师 | G108: 22605019502 | H108: 专业技术岗位 | I108: 145.5 | J108: 24.25 | K108: 78.80 | L108: 39.4 | M108: 63.65 | N108: 2
A109: 106 | B109: 陈涛 | C109: 72722605019502000010 | D109: SBXGK2025050425 | E109: 施秉县民族中学 | F109: 初中物理教师 | G109: 22605019502 | H109: 专业技术岗位 | I109: 141 | J109: 23.5 | K109: 79.00 | L109: 39.5 | M109: 63 | N109: 3
A110: 107 | B110: 税华娇 | C110: 72722605019601000031 | D110: SBXGK2025050322 | E110: 施秉县第三中学 | F110: 初中道德与法治教师 | G110: 22605019601 | H110: 专业技术岗位 | I110: 185 | J110: 30.83333333 | K110: 86.00 | L110: 43 | M110: 73.83333333 | N110: 1 | O110: 是
A111: 108 | B111: 向旭婕 | C111: 72722605019601000003 | D111: SBXGK2025050323 | E111: 施秉县第三中学 | F111: 初中道德与法治教师 | G111: 22605019601 | H111: 专业技术岗位 | I111: 170 | J111: 28.33333333 | K111: 85.60 | L111: 42.8 | M111: 71.13333333 | N111: 2
A112: 109 | B112: 张怡莲 | C112: 72722605019601000010 | D112: SBXGK2025050324 | E112: 施秉县第三中学 | F112: 初中道德与法治教师 | G112: 22605019601 | H112: 专业技术岗位 | I112: 166 | J112: 27.66666667 | K112: 83.60 | L112: 41.8 | M112: 69.46666667 | N112: 3
A113: 110 | B113: 蒋璐 | C113: 72722605019602000018 | D113: SBXGK2025050325 | E113: 施秉县第三中学 | F113: 初中历史教师 | G113: 22605019602 | H113: 专业技术岗位 | I113: 187.5 | J113: 31.25 | K113: 82.20 | L113: 41.1 | M113: 72.35 | N113: 1 | O113: 是
A114: 111 | B114: 曾力 | C114: 72722605019602000002 | D114: SBXGK2025050327 | E114: 施秉县第三中学 | F114: 初中历史教师 | G114: 22605019602 | H114: 专业技术岗位 | I114: 167.5 | J114: =I114/3*0.5 -> 27.91666667 | K114: 86.20 | L114: 43.1 | M114: 71.01666667 | N114: 2
A115: 112 | B115: 徐丽 | C115: 72722605019602000012 | D115: SBXGK2025050326 | E115: 施秉县第三中学 | F115: 初中历史教师 | G115: 22605019602 | H115: 专业技术岗位 | I115: 168 | J115: 28 | K115: 78.00 | L115: 39 | M115: 67 | N115: 3
A116: 113 | B116: 石芊芊 | C116: 72722605019701000135 | D116: SBXGK2025050606 | E116: 施秉县民族中医院 | F116: 财务管理 | G116: 22605019701 | H116: 专业技术岗位 | I116: 197.5 | J116: 32.91666667 | K116: 82.60 | L116: 41.3 | M116: 74.21666667 | N116: 1 | O116: 是
A117: 114 | B117: 冉登豪 | C117: 72722605019701000045 | D117: SBXGK2025050604 | E117: 施秉县民族中医院 | F117: 财务管理 | G117: 22605019701 | H117: 专业技术岗位 | I117: 208 | J117: 34.66666667 | K117: 缺考 | L117: 0 | M117: 34.66666667 | N117: 2
A118: 115 | B118: 龙子涵 | C118: 72722605019701000062 | D118: SBXGK2025050605 | E118: 施秉县民族中医院 | F118: 财务管理 | G118: 22605019701 | H118: 专业技术岗位 | I118: 204 | J118: 34 | K118: 缺考 | L118: 0 | M118: 34 | N118: 3
A119: 116 | B119: 陆柳竹 | C119: 72722605019702000002 | D119: SBXGK2025050501 | E119: 施秉县民族中医院 | F119: 针灸推拿医生 | G119: 22605019702 | H119: 专业技术岗位 | I119: 0 | J119: 0 | K119: 77.40 | L119: 77.40 | M119: 77.40 | N119: 1 | O119: 是
A120: 117 | B120: 龙灵 | C120: 72722605019703000005 | D120: SBXGK2025050502 | E120: 施秉县民族中医院 | F120: 中医临床医生 | G120: 22605019703 | H120: 专业技术岗位 | I120: 0 | J120: 0 | K120: 79.60 | L120: 79.60 | M120: 79.60 | N120: 1 | O120: 是
A121: 118 | B121: 岳朝晨 | C121: 72722605019704000027 | D121: SBXGK2025050504 | E121: 施秉县民族中医院 | F121: 临床药事 | G121: 22605019704 | H121: 专业技术岗位 | I121: 155.1 | J121: =I121/3*0.5 -> 25.85 | K121: 71.20 | L121: =K121*0.5 -> 35.6 | M121: =J121+L121 -> 61.45 | N121: 1 | O121: 是
A122: 119 | B122: 杨违仙 | C122: 72722605019704000006 | D122: SBXGK2025050505 | E122: 施秉县民族中医院 | F122: 临床药事 | G122: 22605019704 | H122: 专业技术岗位 | I122: 154.3 | J122: 25.71666667 | K122: 69.00 | L122: 34.5 | M122: 60.21666667 | N122: 2
A123: 120 | B123: 龚宇锋 | C123: 72722605019704000007 | D123: SBXGK2025050503 | E123: 施秉县民族中医院 | F123: 临床药事 | G123: 22605019704 | H123: 专业技术岗位 | I123: 163 | J123: 27.16666667 | K123: 缺考 | L123: 0 | M123: 27.16666667 | N123: 3
A124: 121 | B124: 邰青梅 | C124: 72722605019901000045 | D124: SBXGK2025050607 | E124: 施秉县双井镇中心卫生院 | F124: 财务管理 | G124: 22605019901 | H124: 专业技术岗位 | I124: 207.5 | J124: 34.58333333 | K124: 84.80 | L124: 42.4 | M124: 76.98333333 | N124: 1 | O124: 是
A125: 122 | B125: 杨俊 | C125: 72722605019901000050 | D125: SBXGK2025050608 | E125: 施秉县双井镇中心卫生院 | F125: 财务管理 | G125: 22605019901 | H125: 专业技术岗位 | I125: 186.5 | J125: 31.08333333 | K125: 82.00 | L125: 41 | M125: 72.08333333 | N125: 2
A126: 123 | B126: 肖锦希 | C126: 72722605019901000022 | D126: SBXGK2025050609 | E126: 施秉县双井镇中心卫生院 | F126: 财务管理 | G126: 22605019901 | H126: 专业技术岗位 | I126: 178.5 | J126: 29.75 | K126: 82.00 | L126: 41 | M126: 70.75 | N126: 3
A127: 124 | B127: 杨正忠 | C127: 72722605020001000033 | D127: SBXGK2025050507 | E127: 施秉县杨柳塘镇卫生院 | F127: 临床医生 | G127: 22605020001 | H127: 专业技术岗位 | I127: 157.4 | J127: 26.23333333 | K127: 87.40 | L127: 43.7 | M127: 69.93333333 | N127: 1 | O127: 是
A128: 125 | B128: 赖俊帆 | C128: 72722605020001000052 | D128: SBXGK2025050506 | E128: 施秉县杨柳塘镇卫生院 | F128: 临床医生 | G128: 22605020001 | H128: 专业技术岗位 | I128: 162.1 | J128: 27.01666667 | K128: 71.60 | L128: 35.8 | M128: 62.81666667 | N128: 2
A129: 126 | B129: 李超 | C129: 72722605020001000051 | D129: SBXGK2025050508 | E129: 施秉县杨柳塘镇卫生院 | F129: 临床医生 | G129: 22605020001 | H129: 专业技术岗位 | I129: 156.8 | J129: 26.13333333 | K129: 71.40 | L129: 35.7 | M129: 61.83333333 | N129: 3
A130: 127 | B130: 刘诗丽 | C130: 72722605020101000002 | D130: SBXGK2025050509 | E130: 施秉县牛大场镇中心卫生院 | F130: 影像诊疗 | G130: 22605020101 | H130: 专业技术岗位 | I130: 168.7 | J130: 28.11666667 | K130: 82.40 | L130: 41.2 | M130: 69.31666667 | N130: 1 | O130: 是
A131: 128 | B131: 任宇明 | C131: 72722605020101000012 | D131: SBXGK2025050510 | E131: 施秉县牛大场镇中心卫生院 | F131: 影像诊疗 | G131: 22605020101 | H131: 专业技术岗位 | I131: 166.6 | J131: 27.76666667 | K131: 79.60 | L131: 39.8 | M131: 67.56666667 | N131: 2
A132: 129 | B132: 陈黔敏 | C132: 72722605020101000027 | D132: SBXGK2025050511 | E132: 施秉县牛大场镇中心卫生院 | F132: 影像诊疗 | G132: 22605020101 | H132: 专业技术岗位 | I132: 143 | J132: 23.83333333 | K132: 83.60 | L132: 41.8 | M132: 65.63333333 | N132: 3
A133: 130 | B133: 丁怀倩 | C133: 72722605020201000086 | D133: SBXGK2025050610 | E133: 施秉县牛大场镇农业农村综合服务中心 | F133: 财务管理 | G133: 22605020201 | H133: 专业技术岗位 | I133: 190 | J133: 31.66666667 | K133: 78.40 | L133: 39.2 | M133: 70.86666667 | N133: 1 | O133: 是
A134: 131 | B134: 李永富 | C134: 72722605020201000076 | D134: SBXGK2025050611 | E134: 施秉县牛大场镇农业农村综合服务中心 | F134: 财务管理 | G134: 22605020201 | H134: 专业技术岗位 | I134: 176 | J134: 29.33333333 | K134: 79.20 | L134: 39.6 | M134: 68.93333333 | N134: 2
A135: 132 | B135: 田雨呓 | C135: 72722605020201000061 | D135: SBXGK2025050612 | E135: 施秉县牛大场镇农业农村综合服务中心 | F135: 财务管理 | G135: 22605020201 | H135: 专业技术岗位 | I135: 168 | J135: 28 | K135: 80.00 | L135: 40 | M135: 68 | N135: 3
A136: 133 | B136: 龙光燕 | C136: 72722605020301000052 | D136: SBXGK2025050613 | E136: 施秉县马号镇农业农村综合服务中心 | F136: 办公室工作人员 | G136: 22605020301 | H136: 管理岗位 | I136: 204 | J136: 34 | K136: 82.60 | L136: 41.3 | M136: 75.3 | N136: 1 | O136: 是
A137: 134 | B137: 罗连 | C137: 72722605020301000015 | D137: SBXGK2025050614 | E137: 施秉县马号镇农业农村综合服务中心 | F137: 办公室工作人员 | G137: 22605020301 | H137: 管理岗位 | I137: 203.5 | J137: 33.91666667 | K137: 缺考 | L137: 0 | M137: 33.91666667 | N137: 2
A138: 135 | B138: 石正东 | C138: 72722605020301000013 | D138: SBXGK2025050615 | E138: 施秉县马号镇农业农村综合服务中心 | F138: 办公室工作人员 | G138: 22605020301 | H138: 管理岗位 | I138: 188.5 | J138: 31.41666667 | K138: 缺考 | L138: 0 | M138: 31.41666667 | N138: 3
A139: 136 | B139: 李磊青 | C139: 72722605020401000026 | D139: SBXGK2025050616 | E139: 施秉县马溪乡农业农村综合服务中心 | F139: 办公室工作人员 | G139: 22605020401 | H139: 管理岗位 | I139: 190 | J139: 31.66666667 | K139: 83.60 | L139: =K139*0.5 -> 41.8 | M139: 73.46666667 | N139: 1 | O139: 是
A140: 137 | B140: 计再明 | C140: 72722605020401000045 | D140: SBXGK2025050617 | E140: 施秉县马溪乡农业农村综合服务中心 | F140: 办公室工作人员 | G140: 22605020401 | H140: 管理岗位 | I140: 174.5 | J140: 29.08333333 | K140: 79.40 | L140: 39.7 | M140: 68.78333333 | N140: 2
A141: 138 | B141: 徐东 | C141: 72722605020401000053 | D141: SBXGK2025050618 | E141: 施秉县马溪乡农业农村综合服务中心 | F141: 办公室工作人员 | G141: 22605020401 | H141: 管理岗位 | I141: 169.5 | J141: 28.25 | K141: 74.80 | L141: 37.4 | M141: 65.65 | N141: 3
A142: 139 | B142: 龙秀全 | C142: 72722605020401000056 | D142: SBXGK2025050619 | E142: 施秉县马溪乡农业农村综合服务中心 | F142: 办公室工作人员 | G142: 22605020401 | H142: 管理岗位 | I142: 169.5 | J142: 28.25 | K142: 73.00 | L142: 36.5 | M142: 64.75 | N142: 4
A143: 140 | B143: 廖君 | C143: 72722605020501000065 | D143: SBXGK2025050621 | E143: 施秉县杨柳塘镇农业农村综合服务中心 | F143: 办公室工作人员 | G143: 22605020501 | H143: 管理岗位 | I143: 174 | J143: 29 | K143: 82.00 | L143: 41 | M143: 70 | N143: 1 | O143: 是
A144: 141 | B144: 张泽 | C144: 72722605020501000055 | D144: SBXGK2025050622 | E144: 施秉县杨柳塘镇农业农村综合服务中心 | F144: 办公室工作人员 | G144: 22605020501 | H144: 管理岗位 | I144: 173 | J144: =I144/3*0.5 -> 28.83333333 | K144: 79.60 | L144: 39.8 | M144: =J144+L144 -> 68.63333333 | N144: 2
A145: 142 | B145: 王章 | C145: 72722605020501000056 | D145: SBXGK2025050620 | E145: 施秉县杨柳塘镇农业农村综合服务中心 | F145: 办公室工作人员 | G145: 22605020501 | H145: 管理岗位 | I145: 176.5 | J145: 29.41666667 | K145: 78.00 | L145: 39 | M145: 68.41666667 | N145: 3
A146: 143 | B146: 张毫 | C146: 72722605020601000038 | D146: SBXGK2025050702 | E146: 施秉县杨柳塘镇党务政务服务中心 | F146: 办公室工作人员 | G146: 22605020601 | H146: 管理岗位 | I146: 200.5 | J146: 33.41666667 | K146: 79.60 | L146: 39.8 | M146: 73.21666667 | N146: 1 | O146: 是
A147: 144 | B147: 谢贵花 | C147: 72722605020601000083 | D147: SBXGK2025050703 | E147: 施秉县杨柳塘镇党务政务服务中心 | F147: 办公室工作人员 | G147: 22605020601 | H147: 管理岗位 | I147: 192.5 | J147: 32.08333333 | K147: 75.20 | L147: 37.6 | M147: 69.68333333 | N147: 2
A148: 145 | B148: 李蚕 | C148: 72722605020601000004 | D148: SBXGK2025050701 | E148: 施秉县杨柳塘镇党务政务服务中心 | F148: 办公室工作人员 | G148: 22605020601 | H148: 管理岗位 | I148: 204 | J148: 34 | K148: 缺考 | L148: 0 | M148: 34 | N148: 3
A149: 146 | B149: 吴珍 | C149: 72722605020701000317 | D149: SBXGK2025050704 | E149: 施秉县双井镇农业农村综合服务中心 | F149: 办公室工作人员 | G149: 22605020701 | H149: 管理岗位 | I149: 200 | J149: 33.33333333 | K149: 83.60 | L149: =K149*0.5 -> 41.8 | M149: 75.13333333 | N149: 1 | O149: 是
A150: 147 | B150: 周书全 | C150: 72722605020701000205 | D150: SBXGK2025050706 | E150: 施秉县双井镇农业农村综合服务中心 | F150: 办公室工作人员 | G150: 22605020701 | H150: 管理岗位 | I150: 198 | J150: 33 | K150: 82.00 | L150: 41 | M150: 74 | N150: 2
A151: 148 | B151: 吴涛涛 | C151: 72722605020701000324 | D151: SBXGK2025050705 | E151: 施秉县双井镇农业农村综合服务中心 | F151: 办公室工作人员 | G151: 22605020701 | H151: 管理岗位 | I151: 200 | J151: 33.33333333 | K151: 74.60 | L151: 37.3 | M151: 70.63333333 | N151: 3
A152: 149 | B152: 姚涛 | C152: 72722605020702000130 | D152: SBXGK2025050707 | E152: 施秉县双井镇农业农村综合服务中心 | F152: 办公室工作人员 | G152: 22605020702 | H152: 专业技术岗位 | I152: 202 | J152: 33.66666667 | K152: 83.00 | L152: 41.5 | M152: 75.16666667 | N152: 1 | O152: 是
A153: 150 | B153: 龙涛 | C153: 72722605020702000090 | D153: SBXGK2025050709 | E153: 施秉县双井镇农业农村综合服务中心 | F153: 办公室工作人员 | G153: 22605020702 | H153: 专业技术岗位 | I153: 182 | J153: 30.33333333 | K153: 82.80 | L153: 41.4 | M153: 71.73333333 | N153: 2
A154: 151 | B154: 张九七 | C154: 72722605020702000106 | D154: SBXGK2025050708 | E154: 施秉县双井镇农业农村综合服务中心 | F154: 办公室工作人员 | G154: 22605020702 | H154: 专业技术岗位 | I154: 191 | J154: 31.83333333 | K154: 78.00 | L154: 39 | M154: 70.83333333 | N154: 3
A155: 152 | B155: 杨欢 | C155: 72722605020801000092 | D155: SBXGK2025050711 | E155: 施秉县统计抽样调查中心 | F155: 办公室工作人员 | G155: 22605020801 | H155: 专业技术岗位 | I155: 208.5 | J155: 34.75 | K155: 87.80 | L155: 43.9 | M155: 78.65 | N155: 1 | O155: 是
A156: 153 | B156: 王荣 | C156: 72722605020801000056 | D156: SBXGK2025050712 | E156: 施秉县统计抽样调查中心 | F156: 办公室工作人员 | G156: 22605020801 | H156: 专业技术岗位 | I156: 205.5 | J156: =I156/3*0.5 -> 34.25 | K156: 83.60 | L156: =K156*0.5 -> 41.8 | M156: =J156+L156 -> 76.05 | N156: 2
A157: 154 | B157: 杨颖谦 | C157: 72722605020801000076 | D157: SBXGK2025050710 | E157: 施秉县统计抽样调查中心 | F157: 办公室工作人员 | G157: 22605020801 | H157: 专业技术岗位 | I157: 219.5 | J157: 36.58333333 | K157: 76.40 | L157: 38.2 | M157: 74.78333333 | N157: 3
A158: 155 | B158: 李世翔 | C158: 72722605020901000082 | D158: SBXGK2025050715 | E158: 施秉县项目建设和服务业发展服务中心 | F158: 办公室工作人员 | G158: 22605020901 | H158: 管理岗位 | I158: 200 | J158: 33.33333333 | K158: 83.00 | L158: 41.5 | M158: 74.83333333 | N158: 1 | O158: 是
A159: 156 | B159: 付钰程 | C159: 72722605020901000093 | D159: SBXGK2025050713 | E159: 施秉县项目建设和服务业发展服务中心 | F159: 办公室工作人员 | G159: 22605020901 | H159: 管理岗位 | I159: 200.5 | J159: 33.41666667 | K159: 77.00 | L159: 38.5 | M159: 71.91666667 | N159: 2
A160: 157 | B160: 王箫 | C160: 72722605020901000108 | D160: SBXGK2025050714 | E160: 施秉县项目建设和服务业发展服务中心 | F160: 办公室工作人员 | G160: 22605020901 | H160: 管理岗位 | I160: 200 | J160: 33.33333333 | K160: 76.80 | L160: 38.4 | M160: 71.73333333 | N160: 3
A161: 158 | B161: 刘鹏云 | C161: 72722605021001000019 | D161: SBXGK2025050716 | E161: 施秉县人民信访服务中心 | F161: 办公室工作人员 | G161: 22605021001 | H161: 管理岗位 | I161: 195 | J161: 32.5 | K161: 85.00 | L161: 42.5 | M161: 75 | N161: 1 | O161: 是
A162: 159 | B162: 杨佳芬 | C162: 72722605021001000030 | D162: SBXGK2025050718 | E162: 施秉县人民信访服务中心 | F162: 办公室工作人员 | G162: 22605021001 | H162: 管理岗位 | I162: 184.5 | J162: 30.75 | K162: 86.20 | L162: 43.1 | M162: 73.85 | N162: 2
A163: 160 | B163: 吴孟燕 | C163: 72722605021001000038 | D163: SBXGK2025050717 | E163: 施秉县人民信访服务中心 | F163: 办公室工作人员 | G163: 22605021001 | H163: 管理岗位 | I163: 186.5 | J163: 31.08333333 | K163: 79.00 | L163: 39.5 | M163: 70.58333333 | N163: 3
A164: 161 | B164: 石韬 | C164: 72722605021101000035 | D164: SBXGK2025050719 | E164: 施秉县社会救助服务中心 | F164: 办公室工作人员 | G164: 22605021101 | H164: 管理岗位 | I164: 187 | J164: 31.16666667 | K164: 87.20 | L164: 43.6 | M164: 74.76666667 | N164: 1 | O164: 是
A165: 162 | B165: 蒋家恒 | C165: 72722605021101000004 | D165: SBXGK2025050721 | E165: 施秉县社会救助服务中心 | F165: 办公室工作人员 | G165: 22605021101 | H165: 管理岗位 | I165: 181 | J165: 30.16666667 | K165: 85.80 | L165: 42.9 | M165: 73.06666667 | N165: 2
A166: 163 | B166: 龙正勇 | C166: 72722605021101000014 | D166: SBXGK2025050720 | E166: 施秉县社会救助服务中心 | F166: 办公室工作人员 | G166: 22605021101 | H166: 管理岗位 | I166: 186.5 | J166: 31.08333333 | K166: 80.40 | L166: 40.2 | M166: 71.28333333 | N166: 3
A167: 164 | B167: 潘琪琪 | C167: 72722605021201000025 | D167: SBXGK2025050724 | E167: 施秉县政务和公益机构域名注册服务中心 | F167: 办公室工作人员 | G167: 22605021201 | H167: 管理岗位 | I167: 195 | J167: 32.5 | K167: 80.40 | L167: 40.2 | M167: 72.7 | N167: 1 | O167: 是
A168: 165 | B168: 肖义飞 | C168: 72722605021201000011 | D168: SBXGK2025050722 | E168: 施秉县政务和公益机构域名注册服务中心 | F168: 办公室工作人员 | G168: 22605021201 | H168: 管理岗位 | I168: 210 | J168: 35 | K168: 缺考 | L168: 0 | M168: 35 | N168: 2
A169: 166 | B169: 赵茂林 | C169: 72722605021201000007 | D169: SBXGK2025050723 | E169: 施秉县政务和公益机构域名注册服务中心 | F169: 办公室工作人员 | G169: 22605021201 | H169: 管理岗位 | I169: 202.5 | J169: 33.75 | K169: 缺考 | L169: 0 | M169: 33.75 | N169: 3
